[Event "FIDE WCCC U10 2018"]
[Site "Santiago de Compostela"]
[Date "2018.11.05"]
[Round "2"]
[White "Zhong, Kevin"]
[Black "Suleymanov, Ali"]
[Result "1-0"]
[ECO "C54"]
[WhiteElo "2038"]
[BlackElo "1667"]
[Annotator "NA"]
[PlyCount "123"]
[EventDate "2018.11.04"]
[EventType "swiss"]
[EventCountry "ESP"]
[SourceTitle "playchess.com"]
[Source "ChessBase"]
[SourceQuality "1"]
[TimeControl "40/5400+30:1800+30"]

{[%evp 8,123,7,11,23,11,10,32767,6,32767,32767,24,32767,29,11,32767,55,30,68,41,67,23,29,23,20,0,20,33,20,19,54,60,52,10,32767,0,5,-72,-84,-91,-28,0,-16,-21,-21,0,-4,-16,-34,-50,-28,-37,-38,-63,-28,-56,-58,-61,-44,-41,0,-6,-2,0,32767,32767,0,32767,28,32767,23,32767,29,32767,13,18,41,0,32,0,0,-6,0,0,593,-259,0,0,0,0,1133,32767,1023,32767,32767,32767,29988,29989,29989,29990,29990,29991,29991,32767,29992,29993,29993,29991,29991,29992,29992,29993,29993,29994,32767,29995,29995,29995]} 1. e4 {[%emt 0:00:00]} e5 {[%emt 0:00:00]} 2. Nf3 {[%emt 0:00:00]} Nc6 {[%emt 0:00:00]} 3. Bc4 {[%emt 0:00:00]} Bc5 {[%emt 0:00:00]} 4. c3 {[%emt 0:00:04]} Nf6 {[%emt 0:00:00]} 5. d3 {[%emt 0:00:06]} d6 {[%emt 0:00:06]} 6. Bb3 {[%emt 0:00:41]} h6 {[%emt 0:01:01]} 7. O-O {[%emt 0:00:18]} O-O {[%emt 0:00:18]} 8. Nbd2 {[%emt 0:00:24]} Bg4 {[%emt 0:04:03]} 9. h3 {[%emt 0:00:14] LiveBook: 3 Games C54: Giuoco Piano: 4 c3 Nf6, main lines with 5 d4 and 5 d3} Bh5 {[%emt 0:00:11]} 10. Re1 {[%emt 0:00:10]} a5 {[%emt 0:03:27]} (10... Re8 11. Nf1 Nd7 12. Ng3 Bg6 13. Nh2 Qh4 14. Qf3 Ne7 15. Ng4 c6 16. Ne3 Rad8 {1-0 (47) Lazic,M (2476)-Kojic,T (2355) Bihac 2016}) 11. Nf1 {[%emt 0:00:12]} b5 {[%emt 0:01:32]} 12. Ng3 {[%emt 0:03:14]} Bg6 {[%emt 0:04:10]} 13. Nh4 {[%emt 0:14:57]} Kh7 {[%emt 0:19:16]} 14. Qf3 $146 {[%emt 0:14:01]} ({Predecessor:} 14. Nhf5 a4 15. Bc2 d5 16. Qe2 Qd7 {0-1 (72) Hairul,M (1446)-Md,M (1823) Penang 2015}) 14... a4 {[%emt 0:05:46]} 15. Bc2 {[%emt 0:00:33]} ({Wrong is} 15. Nxg6 $2 fxg6 16. Be6 Qe8 $19) 15... Ng8 {[%emt 0:06:54]} 16. Ngf5 {[%emt 0:05:25]} Bxf5 {[%emt 0:04:02]} 17. Nxf5 {[%emt 0:02:45]} g6 {[%emt 0:01:00]} 18. Ne3 {[%emt 0:01:24]} Nce7 {[%emt 0:05:36]} 19. Rd1 {[%emt 0:04:10]} Bb6 {[%emt 0:06:14]} 20. d4 {[%emt 0:00:55]} exd4 {[%emt 0:02:08]} 21. cxd4 {[%emt 0:03:28]} Nc6 {[%emt 0:00:54]} 22. Nd5 {[%emt 0:03:01]} (22. Nf5 $1 $11 {remains equal.}) 22... Nxd4 {[%emt 0:03:33]} 23. Qd3 {[%emt 0:00:12] [#]} Ba7 {[%emt 0:02:40]} ({Black should play} 23... Bc5 $1 $17 24. Be3 Nxc2 25. Qxc2 c6 26. Bxc5 dxc5) 24. Be3 {[%emt 0:01:32]} Nxc2 {[%emt 0:00:59]} 25. Qxc2 {[%emt 0:00:09]} Bxe3 {[%emt 0:01:09]} 26. Nxe3 {[%emt 0:00:14]} Rc8 {[%emt 0:02:59]} 27. Qc6 {[%emt 0:00:50]} Qe8 {[%emt 0:00:43]} 28. Qc2 {[%emt 0:08:55]} Nf6 {[%emt 0:03:14]} 29. f3 {[%emt 0:03:07]} Qe5 {[%emt 0:02:20]} 30. Rac1 {[%emt 0:03:11]} Rfd8 {[%emt 0:02:13]} 31. Nd5 {[%emt 0:07:18]} c6 {[%emt 0:01:09]} 32. Nb4 {[%emt 0:01:59]} c5 {[%emt 0:00:58]} 33. Nd5 {[%emt 0:00:46]} Nxd5 {[%emt 0:04:09]} ({Black should play} 33... Rc6 $15) 34. Rxd5 {[%emt 0:00:19]} Qe7 {[%emt 0:00:24]} 35. Rcd1 {[%emt 0:00:23]} Qf6 {[%emt 0:01:31]} 36. Qd2 {[%emt 0:00:28]} Re8 {[%emt 0:06:37]} 37. Rxd6 {[%emt 0:00:38]} Qe5 {[%emt 0:00:55]} 38. Rd7 {[%emt 0:02:19]} Re7 {[%emt 0:02:04]} 39. Rd5 {[%emt 0:03:25]} Qf6 {[%emt 0:00:30]} 40. Rc1 {[%emt 0:00:00]} Qb6 {[%emt 0:00:00]} 41. Qe3 {[%emt 0:04:45]} Rec7 {[%emt 0:02:17]} 42. Rcd1 {[%emt 0:01:49]} Qe6 {[%emt 0:01:54]} 43. Qf4 {[%emt 0:01:16]} b4 {[%emt 0:01:56]} 44. Rd6 {[%emt 0:07:57]} Qxa2 {[%emt 0:03:29]} 45. Qf6 {[%emt 0:03:38]} Rf8 $2 {[%emt 0:06:47]} (45... Rg8 $11 {und Schwarz ist OK.}) 46. Rd8 $4 {[%emt 0:01:11] [#]} (46. h4 $18) 46... Rc8 $2 {[%emt 0:00:22]} ({Better is} 46... Qe6 $1 $19 {[%cal Re6f6]} 47. Qxe6 Rxd8) 47. R8d7 {[%emt 0:03:30]} Kg8 {[%emt 0:04:13]} 48. R1d5 {[%emt 0:03:11]} a3 $2 {[%emt 0:02:14]} (48... Qb3 $11 49. Kh2 Rb8) 49. Rxf7 {[%emt 0:00:51]} Rxf7 {[%emt 0:00:44]} 50. Qxg6+ {[%emt 0:00:05]} Kf8 {[%emt 0:00:15]} 51. Qxh6+ {[%emt 0:00:10]} Ke8 {[%emt 0:01:22]} 52. Qe6+ {[%emt 0:05:49]} Kf8 {[%emt 0:00:07]} 53. Qxc8+ {[%emt 0:01:02]} Kg7 {[%emt 0:00:03]} 54. Qg4+ {[%emt 0:01:05]} Kf8 {[%emt 0:00:11]} 55. Rd8+ {[%emt 0:02:54]} Ke7 {[%emt 0:00:09]} 56. Qd7+ {[%emt 0:02:19]} Kf6 {[%emt 0:00:08]} 57. Qd6+ {[%emt 0:01:53]} Qe6 {[%emt 0:00:26]} 58. e5+ {[%emt 0:00:09]} Kf5 {[%emt 0:00:06]} 59. g4+ {[%emt 0:00:05]} Kf4 {[%emt 0:00:11]} 60. Qxe6 {[%emt 0:00:06]} axb2 {[%emt 0:00:17]} 61. Qxf7+ {[%emt 0:00:14]} Kg3 {[%emt 0:00:05]} 62. Qa2 {[%emt 0:00:15]} 1-0

[Event "FIDE WCCC U10 2018"]
[Site "Santiago de Compostela"]
[Date "2018.11.05"]
[Round "2"]
[White "Kadam Om Manish"]
[Black "Emrikian, Aren"]
[Result "1/2-1/2"]
[ECO "C55"]
[WhiteElo "2025"]
[BlackElo "1658"]
[Annotator "NA RC"]
[PlyCount "85"]
[EventDate "2018.11.04"]
[EventType "swiss"]
[EventCountry "ESP"]
[SourceTitle "playchess.com"]
[Source "ChessBase"]
[SourceQuality "1"]
[TimeControl "40/5400+30:1800+30"]

{[%evp 8,81,35,28,39,32767,32767,32767,57,48,42,43,57,52,47,0,-8,9,1,-48,13,0,0,11,14,-3,11,0,14,14,19,25,18,0,9,22,0,16,41,29,20,8,32767,-89,0,-43,-28,-28,-20,-31,-29,32767,-37,32767,32767,32767,32767,-37,-17,32767,-8,-33,-19,-25,32767,-30,-25,32767,-31,-105,-10,-23,0,0,32767,0]} 1. e4 {[%emt 0:00:00]} e5 {[%emt 0:00:00]} 2. Nf3 {[%emt 0:00:08]} Nc6 {[%emt 0:00:00]} 3. Bc4 {[%emt 0:00:27]} Nf6 {[%emt 0:00:00]} 4. d3 {[%emt 0:00:27]} Be7 {[%emt 0:00:07]} 5. O-O {[%emt 0:00:39]} O-O {[%emt 0:01:52]} 6. Re1 {[%emt 0:00:25]} d6 {[%emt 0:00:26]} 7. a4 {[%emt 0:00:27]} Kh8 {[%emt 0:00:23]} 8. a5 {[%emt 0:01:00] C55: Two Knights: 4 d3, 4 d4 exd4 5 e5 and Max Lange Attack} (8. Nc3 Ng8 9. Nd5 f5 10. h3 fxe4 11. dxe4 Nf6 12. a5 a6 13. Ra3 Be6 14. Nxf6 Bxc4 15. Nd5 Bb5 {½-½ (67) Caruana,F (2822)-Grischuk,A (2766) Saint Louis 2018}) 8... a6 {[%emt 0:00:11]} 9. h3 {[%emt 0:03:47]} Ng8 {[%emt 0:01:01]} 10. Nc3 {[%emt 0:01:07]} f5 {[%emt 0:01:17] LiveBook: 16 Games} 11. exf5 {[%emt 0:01:38]} (11. Nd5 $14) 11... Bxf5 {[%emt 0:01:58]} 12. Nd5 {[%emt 0:01:49]} Nf6 $146 {[%emt 0:03:12]} ({Predecessor:} 12... Qd7 13. c3 Rae8 14. b4 Nd8 15. d4 e4 {½-½ (70) Gara,A (2333)-Szczepkowska,K (2377) Budapest 2014}) 13. Be3 {[%emt 0:22:12]} (13. Nxe7 $11 Nxe7 14. Bd2) 13... Qd7 {[%emt 0:08:05]} ({Black should try} 13... Nxd5 $15 14. Bxd5 Nxa5) 14. c3 {[%emt 0:13:52]} Nxd5 {[%emt 0:09:30]} 15. Bxd5 Bf6 {[%emt 0:03:42]} 16. Ra4 {[%emt 0:09:21]} Rab8 {[%emt 0:09:01]} 17. Ng5 {[%emt 0:06:59]} Bxg5 {[%emt 0:07:42]} 18. Bxg5 {[%emt 0:00:02]} Ne7 {[%emt 0:02:30]} 19. Bb3 {[%emt 0:07:45]} Ng6 {[%emt 0:06:49]} 20. g4 {[%emt 0:02:24]} Be6 {[%emt 0:01:31]} 21. Bxe6 $1 {[%emt 0:00:01]} Qxe6 {[%emt 0:00:18]} 22. f4 $1 Qf7 {[%emt 0:05:00]} 23. f5 {[%emt 0:01:34]} Ne7 {[%emt 0:00:41]} 24. Bxe7 {[%emt 0:04:40]} Qxe7 {[%emt 0:00:07]} 25. Qe2 {[%emt 0:00:29]} (25. d4 $11) 25... Qg5 {[%emt 0:11:19]} (25... Qh4 $15 26. Re4 Qxh3) 26. Qe3 {[%emt 0:07:30]} Rxf5 {[%emt 0:01:50]} 27. Qxg5 {[%emt 0:02:25]} Rxg5 {[%emt 0:00:09]} 28. Kh2 {[%emt 0:00:42]} Rg6 {[%emt 0:06:54]} 29. Rb4 {[%emt 0:01:33]} Re6 {[%emt 0:01:45]} 30. d4 {[%emt 0:01:38]} c6 {[%emt 0:00:50]} 31. dxe5 {[%emt 0:03:02]} dxe5 {[%emt 0:01:01]} 32. Kg3 {[%emt 0:02:40]} Re7 {[%emt 0:01:03]} 33. Rbe4 {[%emt 0:00:22]} Rbe8 {[%emt 0:00:15]} 34. b4 {[%emt 0:00:13]} Kg8 {[%emt 0:01:01]} 35. c4 {[%emt 0:00:06]} Kf7 {[%emt 0:01:28]} 36. Kf3 {[%emt 0:01:47]} Kf6 {[%emt 0:01:24]} 37. h4 {[%emt 0:02:08]} Rd8 {[%emt 0:01:12]} 38. R1e3 {[%emt 0:00:31]} (38. Ke2 $11) 38... h6 {[%emt 0:02:44]} (38... Rd2 $17 39. c5 h6) 39. Ke2 {[%emt 0:01:10]} g6 {[%emt 0:01:52]} 40. Rf3+ {[%emt 0:00:00]} Kg7 {[%emt 0:00:00]} 41. Rfe3 {[%emt 0:01:23]} Kf6 {[%emt 0:00:36]} 42. Rf3+ {[%emt 0:00:01]} Kg7 {[%emt 0:00:06]} 43. Rfe3 {[%emt 0:00:05]} 1/2-1/2

[Event "FIDE WCCC U10 2018"]
[Site "Santiago de Compostela"]
[Date "2018.11.05"]
[Round "2"]
[White "Xiao, Tong"]
[Black "Kempe, Caius Emilian"]
[Result "1-0"]
[ECO "B27"]
[WhiteElo "2022"]
[BlackElo "1653"]
[Annotator "NA RC"]
[PlyCount "49"]
[EventDate "2018.11.04"]
[EventType "swiss"]
[EventCountry "ESP"]
[SourceTitle "playchess.com"]
[Source "ChessBase"]
[SourceQuality "1"]
[TimeControl "40/5400+30:1800+30"]

{[%evp 8,49,33,4,32767,22,33,32767,32767,32767,32767,32767,32767,32767,14,-21,16,25,78,92,79,43,97,75,392,573,429,616,543,619,606,747,658,32767,694,32767,420,493,2019,2053,29993,29985,2375,2598]} 1. e4 {[%emt 0:00:00]} c5 {[%emt 0:00:00]} 2. Nf3 {[%emt 0:00:00]} g6 {[%emt 0:00:08]} 3. d4 {[%emt 0:00:02]} cxd4 {[%emt 0:00:11]} 4. Qxd4 {[%emt 0:00:04]} Nf6 {[%emt 0:00:19]} 5. e5 {[%emt 0:00:08]} Nc6 {[%emt 0:00:18]} 6. Qa4 {[%emt 0:00:10]} Nd5 {[%emt 0:00:26] LiveBook: 312 Games} 7. Qe4 {[%emt 0:01:54]} Nb6 {[%emt 0:00:31] B27: Sicilian: 2 Nf3, unusual Black 2nd moves} 8. Bd3 {[%emt 0:04:20]} (8. Nc3 Bg7 9. Bf4 d5 10. exd6 Bf5 11. dxe7 Qd7 12. Qe3 Nb4 13. Rc1 Nxc2+ 14. Rxc2 Bxc2 15. Bb5 Bxc3+ 16. Qxc3 Qxb5 17. Qxh8+ Kxe7 {½-½ (22) Ortiz Suarez,I (2548)-Guseinov,G (2654) Barbera del Valles 2018}) 8... Bg7 {[%emt 0:00:48]} 9. O-O {[%emt 0:02:03]} O-O {[%emt 0:04:11]} 10. Nc3 {[%emt 0:03:01]} d5 {[%emt 0:09:33]} 11. Qf4 $146 {[%emt 0:07:32]} ({Predecessor:} 11. exd6 $5 Qxd6 (11... exd6 12. Qh4 Ne5 13. Qg3 Bd7 14. Rd1 Qe7 15. Be2 {0-1 (22) Schirrmeister,R (2225)-Matthey,H (2192) Germany 2012}) 12. Qh4 $11) 11... e6 {[%emt 0:09:49]} 12. Qg3 {[%emt 0:01:32]} Nb4 {[%emt 0:12:53]} (12... a6 $11) 13. Bg5 {[%emt 0:04:02]} Qc7 {[%emt 0:02:20]} 14. Qh4 {[%emt 0:01:38]} Nxd3 {[%emt 0:07:42]} 15. cxd3 {[%emt 0:00:06]} Bxe5 $2 {[%emt 0:02:52]} (15... Nd7 $16 {is tougher.}) 16. Nb5 {[%emt 0:01:12]} Qb8 {[%emt 0:01:10]} 17. Nxe5 {[%emt 0:01:31]} Qxe5 {[%emt 0:00:20]} 18. Rae1 {[%emt 0:03:07]} Qf5 {[%emt 0:02:00]} 19. Nd6 {[%emt 0:01:59]} Qxd3 {[%emt 0:01:07]} 20. Re3 {[%emt 0:01:02]} Qc2 {[%emt 0:00:44]} 21. Bf6 {[%emt 0:00:18]} h5 {[%emt 0:00:31]} 22. Qg5 {[%emt 0:00:17]} Kh7 {[%emt 0:01:53]} (22... Nd7 $142 23. Be7 b6 24. Bxf8 Ba6) 23. Rh3 {[%emt 0:00:17]} Qe2 {[%emt 0:01:22]} 24. f3 {[%emt 0:00:11]} Qe3+ $18 {[%emt 0:04:20]} 25. Qxe3 {[%emt 0:00:07]} 1-0

[Event "FIDE WCCC U10 2018"]
[Site "Santiago de Compostela"]
[Date "2018.11.05"]
[Round "2"]
[White "Pingin, Artem"]
[Black "Hartofylakas, Spyros"]
[Result "1-0"]
[ECO "C65"]
[WhiteElo "1981"]
[BlackElo "1651"]
[Annotator "NA RC"]
[PlyCount "139"]
[EventDate "2018.11.04"]
[EventType "swiss"]
[EventCountry "ESP"]
[SourceTitle "playchess.com"]
[Source "ChessBase"]
[SourceQuality "1"]
[TimeControl "40/5400+30:1800+30"]

{[%evp 8,138,32,32767,32767,4,22,4,32767,31,47,25,26,0,26,8,8,-14,39,17,61,66,70,83,71,73,69,66,60,67,104,112,133,116,120,131,125,151,150,99,95,111,104,98,98,95,94,38,95,32767,32767,32767,32767,32767,32767,32767,138,153,146,127,140,128,137,132,134,32767,143,0,114,145,32767,133,32767,32767,127,160,174,159,144,177,662,656,691,802,561,779,803,759,766,1260,692,32767,32767,29974,29976,29982,29973,29983,29985,29986,32767,32767,32767,32767,32767,32767,32767,32767,32767,32767,32767,32767,29990,32767,32767,32767,32767,32767,32767,32767,32767,32767,32767,29994,32767,32767,32767,32767,32767,29997,29998,29998,29999]} 1. e4 {[%emt 0:00:00]} e5 {[%emt 0:00:00]} 2. Nf3 {[%emt 0:00:30]} Nc6 {[%emt 0:01:21]} 3. Bb5 {[%emt 0:00:30]} Bc5 {[%emt 0:00:15]} 4. c3 {[%emt 0:01:28]} Nf6 {[%emt 0:00:24]} 5. d4 {[%emt 0:00:36]} Bb6 {[%emt 0:00:30]} 6. O-O {[%emt 0:01:38]} O-O {[%emt 0:00:34]} 7. Re1 {[%emt 0:02:23]} d6 {[%emt 0:02:05]} 8. h3 {[%emt 0:02:28]} Qe7 {[%emt 0:04:59] LiveBook: 7 Games} 9. Bxc6 {[%emt 0:13:08] C65: Ruy Lopez: Berlin Defence (3...Nf6), unusual lines and 4 0-0 Bc5} (9. a4 a6 10. Bc4 h6 11. Na3 Re8 12. d5 Nb8 13. Bf1 Nbd7 14. Nc4 Ba7 15. a5 Nf8 16. b3 Ng6 {1-0 (38) Radulski,J (2606)-Stojanovic,D (2496) Belgrade 2010}) 9... bxc6 {[%emt 0:00:45]} 10. dxe5 {[%emt 0:00:07]} dxe5 {[%emt 0:01:31]} 11. Qa4 {[%emt 0:01:13]} Bd7 $146 {[%emt 0:21:19]} ({Predecessor:} 11... Nd7 12. Qxc6 Rb8 13. Be3 Nc5 14. Bxc5 Bxc5 15. b4 Bd6 16. Nbd2 Kh8 {1-0 (37) Joecks,C (2355)-Ahmels,V (2265) Germany 1991}) 12. Na3 {[%emt 0:04:57]} c5 {[%emt 0:06:44]} ({Nicht} 12... Qc5 13. Be3 $16) 13. Qc2 {[%emt 0:00:27]} Bc6 {[%emt 0:10:07]} 14. Bg5 {[%emt 0:01:06]} Qe6 {[%emt 0:03:05]} 15. Bxf6 {[%emt 0:02:11]} Qxf6 {[%emt 0:02:12]} 16. Nc4 {[%emt 0:00:33]} Rfe8 {[%emt 0:03:10]} 17. Rad1 {[%emt 0:02:16]} Bb5 {[%emt 0:02:26]} 18. Qb3 {[%emt 0:08:50]} Bxc4 {[%emt 0:01:42]} 19. Qxc4 {[%emt 0:01:05]} Qe6 {[%emt 0:00:33]} 20. Qxe6 {[%emt 0:01:19]} Rxe6 {[%emt 0:00:13]} 21. Nd2 {[%emt 0:00:09]} f6 {[%emt 0:02:03]} 22. Nc4 {[%emt 0:00:31]} Kf7 {[%emt 0:01:56]} 23. Rd5 {[%emt 0:02:58]} c6 {[%emt 0:04:57]} 24. Rd7+ {[%emt 0:00:12]} Re7 {[%emt 0:00:27]} 25. Red1 {[%emt 0:00:54]} Bc7 {[%emt 0:02:16]} 26. Kf1 {[%emt 0:06:05]} Ke6 {[%emt 0:01:14]} 27. Rxe7+ {[%emt 0:01:30]} ({White should try} 27. R7d3 $16) 27... Kxe7 {[%emt 0:00:06]} 28. Ke2 {[%emt 0:00:07]} Rd8 {[%emt 0:00:56]} 29. Rxd8 {[%emt 0:00:13]} Bxd8 {[%emt 0:00:54]} 30. Kd3 {[%emt 0:00:56]} Ke6 {[%emt 0:01:36]} 31. Ne3 {[%emt 0:02:10]} g6 {[%emt 0:00:58]} 32. Kc4 {[%emt 0:00:14]} Bb6 {[%emt 0:01:50]} 33. g4 {[%emt 0:00:52]} Kd6 {[%emt 0:02:22]} 34. f3 {[%emt 0:01:18]} Ke6 {[%emt 0:00:32]} 35. a4 {[%emt 0:00:10]} a5 $1 {[%emt 0:10:13]} 36. Kd3 {[%emt 0:05:42]} Bc7 {[%emt 0:02:45]} 37. Kc4 {[%emt 0:07:28]} ({White should try} 37. Nf1 $16) 37... Bb6 {[%emt 0:01:26]} 38. Kb3 {[%emt 0:00:07]} Bc7 {[%emt 0:00:45]} 39. Ka3 {[%emt 0:01:01]} Kd7 {[%emt 0:03:53]} 40. Nc4 {[%emt 0:00:00]} Kc8 {[%emt 0:00:00]} 41. b4 {[%emt 0:03:02]} cxb4+ {[%emt 0:14:25]} 42. cxb4 {[%emt 0:00:07]} axb4+ {[%emt 0:07:21]} 43. Kxb4 {[%emt 0:00:05]} Kb7 $2 {[%emt 0:00:35]} (43... Bb8 44. g5 fxg5) 44. Kc5 {[%emt 0:00:28]} Bb8 {[%emt 0:03:34]} 45. Na5+ {[%emt 0:00:25]} Ka6 {[%emt 0:03:52]} 46. Nxc6 {[%emt 0:00:07]} Bc7 {[%emt 0:00:16] [#]} 47. a5 $1 {[%emt 0:02:11]} h5 {[%emt 0:01:46]} 48. gxh5 {[%emt 0:00:51]} gxh5 {[%emt 0:00:10]} 49. Kd5 {[%emt 0:00:20]} Kb5 {[%emt 0:01:37]} 50. h4 {[%emt 0:00:29]} Ka6 {[%emt 0:01:11]} 51. Ke6 {[%emt 0:00:18]} Kb7 {[%emt 0:00:25]} 52. Kd7 {[%emt 0:00:21]} Bb8 {[%emt 0:00:44]} 53. Nxb8 {[%emt 0:00:05]} Kxb8 {[%emt 0:00:09]} 54. Ke6 {[%emt 0:00:02]} Ka7 {[%emt 0:00:05]} 55. Kxf6 {[%emt 0:00:04]} Ka6 {[%emt 0:00:03]} 56. Kxe5 {[%emt 0:00:05]} Kxa5 {[%emt 0:00:06]} 57. f4 {[%emt 0:00:05]} Kb6 {[%emt 0:00:05]} 58. Kd6 {[%emt 0:00:04]} Kb5 {[%emt 0:00:06]} 59. e5 {[%emt 0:00:04]} Kc4 {[%emt 0:00:04]} 60. e6 {[%emt 0:00:03]} Kd4 {[%emt 0:00:04]} 61. e7 {[%emt 0:00:27]} Ke4 {[%emt 0:00:04]} 62. e8=Q+ {[%emt 0:00:14]} Kxf4 {[%emt 0:00:05]} 63. Qxh5 {[%emt 0:00:07]} Ke4 {[%emt 0:00:06]} 64. Qe5+ {[%emt 0:00:03]} Kd3 {[%emt 0:00:07]} 65. h5 {[%emt 0:00:30]} Kd2 {[%emt 0:00:39]} 66. h6 {[%emt 0:00:04]} Kc2 {[%emt 0:00:04]} 67. h7 {[%emt 0:00:05]} Kd2 {[%emt 0:00:02]} 68. h8=Q {[%emt 0:00:06]} Kc2 {[%emt 0:00:05]} 69. Qhh2+ {[%emt 0:00:03]} Kd3 {[%emt 0:00:08]} 70. Qhe2# 1-0

[Event "FIDE WCCC U10 2018"]
[Site "Santiago de Compostela"]
[Date "2018.11.05"]
[Round "2"]
[White "Sosa Costa, Leonardo"]
[Black "Lopez Naranjo, Ubaldo Enrique"]
[Result "1-0"]
[ECO "C50"]
[WhiteElo "1945"]
[BlackElo "1612"]
[Annotator "NA RC"]
[PlyCount "63"]
[EventDate "2018.11.04"]
[EventType "swiss"]
[EventCountry "ESP"]
[SourceTitle "playchess.com"]
[Source "ChessBase"]
[SourceQuality "1"]
[TimeControl "40/5400+30:1800+30"]

{[%evp 17,56,-12,32767,32767,22,0,40,32767,36,26,46,40,60,28,50,56,54,7,106,21,91,15,91,104,179,163,203,207,209,200,271,164,32767,272,329,223,326,-34,1002,1089,29995]} 1. e4 {[%emt 0:00:00]} e5 {[%emt 0:00:00]} 2. Nf3 {[%emt 0:00:00]} Nc6 {[%emt 0:00:00]} 3. Bc4 {[%emt 0:00:00]} Bc5 {[%emt 0:00:00]} 4. d3 {[%emt 0:00:16]} Nf6 {[%emt 0:00:08]} 5. O-O {[%emt 0:00:33]} d6 {[%emt 0:00:07]} 6. c3 {[%emt 0:00:32]} a5 {[%emt 0:00:11] C54: Giuoco Piano: 4 c3 Nf6, main lines with 5 d4 and 5 d3} (6... a6 7. a4 Ba7 8. Re1 O-O 9. h3 h6 10. Nbd2 Re8 11. Nf1 Be6 12. Bxe6 Rxe6 13. Be3 Bxe3 14. Nxe3 d5 {½-½ (32) Anand,V (2768)-Grischuk,A (2766) Saint Louis 2018}) 7. Bb3 {[%emt 0:01:51]} h6 {[%emt 0:00:18]} 8. Nbd2 {[%emt 0:01:18]} O-O {[%emt 0:00:27]} 9. h3 {[%emt 0:01:05] LiveBook: 19 Games} Ba7 {[%emt 0:00:38]} 10. Re1 {[%emt 0:01:19]} Be6 {[%emt 0:02:04]} 11. Bc2 {[%emt 0:00:45]} Ne7 {[%emt 0:00:36]} 12. Nf1 {[%emt 0:01:43]} Ng6 {[%emt 0:01:01]} 13. Ng3 $146 {[%emt 0:02:31]} ({Predecessor:} 13. d4 c6 14. Be3 {½-½ (41) Vykouk,J (2426)-Belunek,V (2216) Ostrava 2018}) 13... c6 {[%emt 0:03:41]} 14. d4 {[%emt 0:07:35]} Qc7 {[%emt 0:06:35]} 15. Qe2 {[%emt 0:09:22]} Rfe8 {[%emt 0:04:48]} 16. Be3 {[%emt 0:04:35]} c5 {[%emt 0:18:15]} 17. a4 {[%emt 0:07:52]} Rac8 {[%emt 0:02:36]} (17... cxd4 $11 18. cxd4 Rac8) 18. Rac1 {[%emt 0:01:41]} ({White should try} 18. d5 $16 Bd7 19. Nd2) 18... c4 {[%emt 0:09:20]} 19. Nh2 {[%emt 0:11:08]} ({Better is} 19. Qd2 $16) 19... exd4 {[%emt 0:08:23]} (19... d5 $11) 20. cxd4 {[%emt 0:01:24]} d5 {[%emt 0:04:25]} (20... Bd7 $16) 21. e5 {[%emt 0:01:19]} Nh7 {[%emt 0:02:25]} 22. f4 {[%emt 0:04:02]} Ne7 {[%emt 0:03:08]} 23. f5 {[%emt 0:00:38]} Bd7 {[%emt 0:00:09] [#]} 24. f6 $1 {[%emt 0:12:30]} gxf6 {[%emt 0:03:49]} 25. Bxh7+ {[%emt 0:03:14]} (25. Qh5 $142 f5 {[#]} 26. Ng4 $1 {[%mdl 512]} (26. Qxh6 Qb6 $16)) 25... Kxh7 {[%emt 0:00:21]} 26. Qh5 {[%emt 0:00:23]} Ng8 {[%emt 0:11:44]} 27. Rf1 $2 {[%emt 0:10:33]} ({Weaker is} 27. Qxf7+ Kh8 $16) ({White has to play} 27. Kh1 $18) 27... Be6 $18 {[%emt 0:04:34]} (27... Rxe5 $15 28. Qf3 {[#]} (28. Qxf7+ Kh8 $17) 28... Rxe3 $1 {[%mdl 512]} 29. Qxe3 Bb8) 28. Rxf6 {[%emt 0:01:09]} Nxf6 {[%emt 0:01:59]} 29. Qxh6+ {[%emt 0:00:05]} Kg8 {[%emt 0:00:07]} 30. exf6 {[%emt 0:01:20]} Qxg3 {[%emt 0:00:35]} 31. Ng4 {[%emt 0:00:10]} Qxe3+ {[%emt 0:03:28]} 32. Nxe3 {[%emt 0:00:13]} 1-0